lending/lending_fUSD_20250121
["ID","MTS","AMOUNT","RATE_DAILY","PERIOD"]
[349799534,1737435047328,-500.0,0.00020273,2]
[349799535,1737435047337,-500.0,0.00020273,2]
[349799536,1737435047347,-500.0,0.00020273,2]
[349799537,1737435047356,-500.0,0.00020273,2]
[349799538,1737435047366,-500.0,0.00020273,2]
[349799539,1737435047375,-500.0,0.00020273,2]
[349799540,1737435047385,-500.0,0.00020273,2]
[349799541,1737435047394,-500.0,0.00020273,2]
[349799542,1737435047404,-608.62,0.00020273,2]
[349799543,1737435047414,-775.25,0.00020273,2]
[349799544,1737435047423,-500.0,0.00020273,2]
[349799545,1737435047434,-520.18362216,0.00020273,2]
[349799546,1737435047451,-336.26996785,0.00020273,2]
[349799547,1737435047461,-500.0,0.00020273,2]
[349799548,1737435047471,-500.0,0.00020273,2]
[349799549,1737435047481,-2307.22,0.00020273,2]
[349799550,1737435047494,-610.59339231,0.00020273,2]
[349799551,1737435047504,-500.0,0.00020273,2]
[349799552,1737435047514,-500.0,0.00020273,2]
[349799553,1737435047524,-500.0,0.00020456,2]
[349799554,1737435047537,-500.0,0.00020456,2]
[349799555,1737435047547,-500.0,0.00020456,2]
[349799556,1737435047556,-500.0,0.00020456,2]
[349799557,1737435047566,-500.0,0.00020456,2]
[349799558,1737435047576,-500.0,0.00020456,2]
[349799559,1737435047586,-508.13369328,0.00020456,2]
[349799560,1737435047596,-1198.92,0.00020456,2]
[349799561,1737435047606,-629.18,0.00020456,2]
[349799562,1737435047616,-500.0,0.00020456,2]
[349799563,1737435047626,-654.38,0.00020456,2]
[349799564,1737435047636,-500.0,0.00020456,2]
[349799565,1737435047645,-500.0,0.00020456,2]
[349799566,1737435047655,-1001.36,0.00020456,2]
[349799567,1737435047666,-523.87,0.00020456,2]
[349799568,1737435047676,-774.72,0.00020456,2]
[349799569,1737435047686,-545.78,0.00020456,2]
[349799570,1737435047696,-581.68435356,0.00020456,2]
[349799571,1737435047707,-500.0,0.00020456,2]
[349799572,1737435047717,-500.0,0.00020456,2]
[349799573,1737435047728,-1521.58,0.00020456,2]
[349799574,1737435047738,-500.0,0.00020456,2]
[349799575,1737435047748,-995.55,0.00020456,2]
[349799576,1737435047759,-500.0,0.00020456,2]
[349799577,1737435047768,-500.0,0.00020456,2]
[349799578,1737435047781,-717.51,0.00020456,2]
[349799579,1737435047792,-500.0,0.00020456,2]
[349799580,1737435047802,-510.62,0.00020456,2]
[349799581,1737435047812,-500.0,0.00020456,2]
[349799582,1737435047822,-1144.85,0.00020456,2]
[349799583,1737435047832,-500.0,0.00020456,2]
[349799584,1737435047842,-500.0,0.00020456,2]
[349799585,1737435047852,-1257.94,0.00020456,2]
[349799586,1737435047861,-500.0,0.00020456,2]
[349799587,1737435047871,-500.0,0.00020456,2]
[349799588,1737435047880,-500.0,0.00020456,2]
[349799589,1737435047890,-776.09,0.00020456,2]
[349799590,1737435047900,-500.0,0.00020456,2]
[349799591,1737435047910,-584.43,0.00020456,2]
[349799592,1737435047920,-767.69,0.00020456,2]
[349799593,1737435047930,-595.66,0.00020456,2]
[349799594,1737435047939,-500.0,0.00020456,2]
[349799595,1737435047949,-941.02,0.00020456,2]
[349799596,1737435047958,-500.0,0.00020456,2]
[349799597,1737435047968,-1316.6,0.00020456,2]
[349799598,1737435047978,-533.95,0.00020456,2]
[349799599,1737435047987,-964.26,0.00020456,2]
[349799600,1737435047996,-644.96,0.00020456,2]
[349799601,1737435048006,-500.0,0.00020456,2]
[349799602,1737435048016,-500.0,0.00020456,2]
[349799603,1737435048025,-775.64,0.00020456,2]
[349799604,1737435048039,-500.0,0.00020456,2]
[349799605,1737435048054,-750.82,0.00020456,2]
[349799606,1737435048064,-500.0,0.00020456,2]
[349799607,1737435048075,-500.0,0.00020456,2]
[349799608,1737435048084,-500.0,0.00020456,2]
[349799609,1737435048095,-1008.68,0.00020456,2]
[349799610,1737435048105,-500.0,0.00020456,2]
[349799611,1737435048115,-500.0,0.00020456,2]
[349799612,1737435048125,-500.0,0.00020456,2]
[349799613,1737435048135,-500.0,0.00020456,2]
[349799614,1737435048145,-500.0,0.00020456,2]
[349799615,1737435048155,-500.0,0.00020456,2]
[349799616,1737435048165,-1040.03,0.00020456,2]
[349799617,1737435048176,-500.0,0.00020456,2]
[349799618,1737435048186,-500.39,0.00020456,2]
[349799619,1737435048196,-500.0,0.00020456,2]
[349799620,1737435048207,-856.99,0.00020456,2]
[349799621,1737435048218,-500.0,0.00020456,2]
[349799622,1737435048229,-514.34,0.00020456,2]
[349799623,1737435048239,-500.0,0.00020456,2]
[349799624,1737435048249,-500.0,0.00020456,2]
[349799625,1737435048259,-500.0,0.00020456,2]
[349799626,1737435048269,-500.0,0.00020456,2]
[349799627,1737435048280,-500.0,0.00020456,2]
[349799628,1737435048290,-500.0,0.00020456,2]
[349799629,1737435048300,-500.0,0.00020456,2]
[349799630,1737435048311,-1111.15,0.00020456,2]
[349799631,1737435048321,-827.45,0.00020456,2]
[349799632,1737435048331,-500.0,0.00020456,2]
[349799633,1737435048341,-500.0,0.00020456,2]
[349799634,1737435048351,-500.0,0.00020456,2]
[349799635,1737435048361,-500.0,0.00020456,2]
[349799636,1737435048371,-684.61,0.00020456,2]
[349799637,1737435048381,-1080.62,0.00020456,2]
[349799638,1737435048391,-15808.69098053,0.00020484,2]
[349799639,1737435048401,-500.0,0.00020546,2]
[349799640,1737435048411,-500.0,0.00020546,2]
[349799641,1737435048420,-500.0,0.00020546,2]
[349799642,1737435048432,-500.0,0.00020546,2]
[349799643,1737435048443,-1349.98,0.00020546,2]
[349799644,1737435048452,-500.0,0.00020546,2]
[349799645,1737435048463,-500.0,0.00020546,2]
[349799646,1737435048473,-583.46,0.00020546,2]
[349799647,1737435048483,-500.0,0.00020546,2]
[349799648,1737435048493,-500.0,0.00020546,2]
[349799649,1737435048503,-500.0,0.00020546,2]
[349799650,1737435048514,-500.0,0.00020546,2]
[349799651,1737435048525,-500.0,0.00020546,2]
[349799652,1737435048537,-500.0,0.00020546,2]
[349799653,1737435048547,-500.0,0.00020546,2]
[349799654,1737435048556,-500.0,0.00020546,2]
[349799655,1737435048566,-500.0,0.00020546,2]
[349799656,1737435048576,-500.0,0.00020546,2]
[349799657,1737435048586,-1664.66,0.00020547,2]
[349799658,1737435048597,-500.0,0.00020547,2]
[349799659,1737435048607,-500.0,0.00020547,2]
[349799660,1737435048618,-500.0,0.00020547,2]
[349799661,1737435048629,-500.0,0.00020547,2]
[349799662,1737435048639,-500.0,0.00020547,2]
[349799663,1737435048650,-500.0,0.00020547,2]
[349799664,1737435048660,-500.0,0.00020547,2]
[349799665,1737435048670,-500.0,0.00020547,2]
[349799666,1737435048681,-500.0,0.00020547,2]
[349799667,1737435048691,-500.0,0.00020547,2]
[349799668,1737435048700,-500.0,0.00020547,2]
[349799669,1737435048710,-500.0,0.00020547,2]
[349799670,1737435048720,-500.0,0.00020547,2]
[349799671,1737435048730,-579.27,0.00020547,2]
[349799672,1737435048740,-594.92,0.00020547,2]
[349799673,1737435048750,-500.0,0.00020547,2]
[349799674,1737435048760,-500.0,0.00020547,2]
[349799675,1737435048770,-500.0,0.00020547,2]
[349799676,1737435048781,-500.0,0.00020547,2]
[349799677,1737435048791,-500.0,0.00020547,2]
[349799678,1737435048801,-500.0,0.00020547,2]
[349799679,1737435048810,-500.0,0.00020547,2]
[349799680,1737435048820,-500.0,0.00020547,2]
[349799681,1737435048831,-500.0,0.00020547,2]
[349799682,1737435048841,-500.0,0.00020547,2]
[349799683,1737435048851,-500.0,0.00020547,2]
[349799684,1737435048861,-500.0,0.00020547,2]
[349799685,1737435048871,-500.0,0.00020547,2]
[349799686,1737435048881,-500.0,0.00020547,2]
[349799687,1737435048891,-500.0,0.00020547,2]
[349799688,1737435048900,-500.0,0.00020547,2]
[349799689,1737435048910,-500.0,0.00020547,2]
[349799690,1737435048920,-500.0,0.00020547,2]
[349799691,1737435048931,-500.0,0.00020547,2]
[349799692,1737435048940,-580.56,0.00020547,2]
[349799693,1737435048951,-500.0,0.00020547,2]
[349799694,1737435048960,-500.0,0.00020547,2]
[349799695,1737435048970,-585.47845972,0.00020547,2]
[349799696,1737435048980,-500.0,0.00020547,2]
[349799697,1737435048990,-500.0,0.00020547,2]
[349799698,1737435049000,-500.0,0.00020547,2]
[349799699,1737435049010,-500.0,0.00020547,2]
[349799700,1737435049020,-500.0,0.00020547,2]
[349799701,1737435049031,-500.0,0.00020547,2]
[349799702,1737435049041,-500.0,0.00020547,2]
[349799703,1737435049050,-500.0,0.00020547,2]
[349799704,1737435049060,-500.0,0.00020547,2]
[349799705,1737435049070,-500.0,0.00020547,2]
[349799706,1737435049080,-500.0,0.00020547,2]
[349799707,1737435049090,-500.0,0.00020547,2]
[349799708,1737435049100,-500.0,0.00020547,2]
[349799709,1737435049110,-500.0,0.00020547,2]
[349799710,1737435049120,-500.0,0.00020547,2]
[349799711,1737435049130,-500.0,0.00020547,2]
[349799712,1737435049140,-500.0,0.00020547,2]
[349799713,1737435049150,-500.0,0.00020547,2]
[349799714,1737435049160,-500.0,0.00020547,2]
[349799715,1737435049171,-500.0,0.00020547,2]
[349799716,1737435049182,-500.0,0.00020547,2]
[349799717,1737435049192,-292.03568509,0.00020547,2]
[349799718,1737435049203,-500.0,0.00020547,2]
[349799719,1737435049212,-500.0,0.00020547,2]
[349799720,1737435049223,-500.0,0.00020547,2]
[349799721,1737435049439,-500.0,0.00020547,2]
[349799722,1737435049450,-500.0,0.00020547,2]
[349799723,1737435049460,-500.0,0.00020547,2]
[349799724,1737435049469,-500.0,0.00020547,2]
[349799725,1737435049479,-500.0,0.00020547,2]
[349799726,1737435049490,-557.99,0.00020547,2]
[349799727,1737435049499,-500.0,0.00020547,2]
[349799728,1737435049509,-528.92,0.00020547,2]
[349799729,1737435049519,-500.0,0.00020547,2]
[349799730,1737435049529,-500.0,0.00020547,2]
[349799731,1737435049541,-500.0,0.00020547,2]
[349799732,1737435049552,-500.0,0.00020547,2]
[349799733,1737435049562,-500.0,0.00020547,2]
[349799734,1737435049572,-500.0,0.00020547,2]
[349799735,1737435049583,-500.0,0.00020547,2]
[349799736,1737435049593,-528.52,0.00020547,2]
[349799737,1737435049603,-500.0,0.00020547,2]
[349799738,1737435049613,-500.0,0.00020547,2]
[349799739,1737435049623,-500.0,0.00020547,2]
[349799740,1737435049633,-500.0,0.00020547,2]
[349799741,1737435049643,-803.81,0.00020547,2]
[349799742,1737435049652,-1399.56,0.00020547,2]
[349799743,1737435049663,-183.36478677,0.00020547,2]
[349799744,1737435049674,-500.0,0.00020547,2]
[349799745,1737435049683,-1622.81,0.00020547,2]
[349799746,1737435049693,-737.94,0.00020547,2]
[349799747,1737435049703,-1422.2,0.00020547,2]
[349799748,1737435049714,-860.21,0.00020547,2]
[349799749,1737435049723,-500.0,0.00020547,2]
[349799750,1737435049734,-914.42,0.00020547,2]
[349799751,1737435049744,-500.0,0.00020547,2]
[349799752,1737435049754,-804.37,0.00020547,2]
[349799753,1737435049765,-684.42,0.00020547,2]
[349799754,1737435049776,-500.0,0.00020547,2]
[349799755,1737435049791,-500.0,0.00020547,2]
[349799756,1737435049801,-703.68,0.00020547,2]
[349799757,1737435049811,-519.79160225,0.00020547,2]
[349799758,1737435049822,-1924.26,0.00020547,2]
[349799759,1737435049833,-1181.37,0.00020547,2]
[349799760,1737435049844,-374.05592029,0.00020547,2]
[349799761,1737435049854,-300.0,0.00020547,2]
[349799762,1737435049865,-500.0,0.00020547,2]
[349799763,1737435049875,-500.0,0.00020547,2]
[349799764,1737435049886,-635.65,0.00020547,2]
[349799765,1737435049897,-161.07197527,0.00020547,2]
[349799766,1737435049908,-500.0,0.00020547,2]
[349799767,1737435049918,-500.0,0.00020547,2]
[349799768,1737435049929,-500.0,0.00020547,2]
[349799769,1737435049939,-1000.67,0.00020547,2]
[349799770,1737435049948,-500.0,0.00020547,2]
[349799771,1737435049958,-500.0,0.00020547,2]
[349799772,1737435049967,-500.0,0.00020547,2]
[349799773,1737435049977,-500.0,0.00020547,2]
[349799774,1737435049987,-500.0,0.00020547,2]
[349799775,1737435049996,-500.0,0.00020547,2]
[349799776,1737435050006,-500.0,0.00020547,2]
[349799777,1737435050016,-500.0,0.00020547,2]
[349799778,1737435050026,-500.0,0.00020547,2]
[349799779,1737435050040,-500.0,0.00020547,2]
[349799780,1737435050050,-608.62,0.00020547,2]
[349799781,1737435050059,-775.25,0.00020547,2]
[349799782,1737435050069,-500.0,0.00020547,2]
[349799783,1737435050079,-500.0,0.00020547,2]
[349799784,1737435050089,-500.0,0.00020547,2]
[349799785,1737435050099,-2307.22,0.00020547,2]
[349799786,1737435050109,-500.0,0.00020547,2]
[349799787,1737435050119,-500.0,0.00020547,2]
[349799788,1737435050129,-500.0,0.0002073,2]
[349799789,1737435050139,-500.0,0.0002073,2]
[349799790,1737435050149,-500.0,0.0002073,2]
[349799791,1737435050159,-500.0,0.0002073,2]
[349799792,1737435050169,-500.0,0.0002073,2]
[349799793,1737435050180,-500.0,0.0002073,2]
[349799794,1737435050190,-1198.92,0.0002073,2]
[349799795,1737435050200,-629.18,0.0002073,2]
[349799796,1737435050210,-500.0,0.0002073,2]
[349799797,1737435050219,-174.016084,0.0002073,2]
[349799798,1737435050229,-654.38,0.0002073,2]
[349799799,1737435050239,-500.0,0.0002073,2]
[349799800,1737435050249,-500.0,0.0002073,2]
[349799801,1737435050258,-1001.36,0.0002073,2]
[349799802,1737435050268,-168.111225,0.0002073,2]
[349799803,1737435050278,-523.87,0.0002073,2]
[349799804,1737435050293,-774.72,0.0002073,2]
[349799805,1737435050303,-545.78,0.0002073,2]
[349799806,1737435050313,-500.0,0.0002073,2]
[349799807,1737435050324,-500.0,0.0002073,2]
[349799808,1737435050334,-1521.58,0.0002073,2]
[349799809,1737435050344,-500.0,0.0002073,2]
[349799810,1737435050354,-995.55,0.0002073,2]
[349799811,1737435050364,-500.0,0.0002073,2]
[349799812,1737435050374,-500.0,0.0002073,2]
[349799813,1737435050384,-717.51,0.0002073,2]
[349799814,1737435050394,-500.0,0.0002073,2]
[349799815,1737435050404,-510.62,0.0002073,2]
[349799816,1737435050413,-500.0,0.0002073,2]
[349799817,1737435050423,-1144.85,0.0002073,2]
[349799818,1737435050436,-522.77373854,0.0002073,2]
[349799819,1737435050446,-500.0,0.0002073,2]
[349799820,1737435050455,-1257.94,0.0002073,2]
[349799821,1737435050464,-520.5642227,0.0002073,2]
[349799822,1737435050474,-500.0,0.0002073,2]
[349799823,1737435050484,-500.0,0.0002073,2]
[349799824,1737435050493,-776.09,0.0002073,2]
[349799825,1737435050503,-500.0,0.0002073,2]
[349799826,1737435050514,-584.43,0.0002073,2]
[349799827,1737435050523,-595.66,0.0002073,2]
[349799828,1737435050535,-767.69,0.0002073,2]
[349799829,1737435050545,-500.0,0.0002073,2]
[349799830,1737435050554,-941.02,0.0002073,2]
[349799831,1737435050564,-500.0,0.0002073,2]
[349799832,1737435050574,-1316.6,0.0002073,2]
[349799833,1737435050583,-533.95,0.0002073,2]
[349799834,1737435050593,-964.26,0.0002073,2]
[349799835,1737435050603,-644.96,0.0002073,2]
[349799836,1737435050613,-500.0,0.0002073,2]
[349799837,1737435050623,-500.0,0.0002073,2]
[349799838,1737435050633,-775.64,0.0002073,2]
[349799839,1737435050642,-500.0,0.0002073,2]
[349799840,1737435050652,-750.82,0.0002073,2]
[349799841,1737435050661,-500.0,0.0002073,2]
[349799842,1737435050672,-500.0,0.0002073,2]
[349799843,1737435050681,-500.0,0.0002073,2]
[349799844,1737435050691,-1008.68,0.0002073,2]
[349799845,1737435050701,-355.80684008,0.0002073,2]
[349799846,1737435050711,-500.0,0.0002073,2]
[349799847,1737435050720,-500.0,0.0002073,2]
[349799848,1737435050730,-500.0,0.0002073,2]
[349799849,1737435050739,-500.0,0.0002073,2]
[349799850,1737435050749,-500.0,0.0002073,2]
[349799851,1737435050758,-1040.03,0.0002073,2]
[349799852,1737435050767,-500.0,0.0002073,2]
[349799853,1737435050776,-500.39,0.0002073,2]
[349799854,1737435050789,-381.14753863,0.0002073,2]
[349799855,1737435050799,-856.99,0.0002073,2]
[349799856,1737435050808,-500.0,0.0002073,2]
[349799857,1737435050819,-514.34,0.0002073,2]
[349799858,1737435050829,-500.0,0.0002073,2]
[349799859,1737435050839,-500.0,0.0002073,2]
[349799860,1737435050849,-153.35398085,0.0002073,2]
[349799861,1737435050859,-500.0,0.0002073,2]
[349799862,1737435050868,-500.0,0.0002073,2]
[349799863,1737435050878,-500.0,0.0002073,2]
[349799864,1737435050888,-500.0,0.0002073,2]
[349799865,1737435050898,-1111.15,0.0002073,2]
[349799866,1737435050908,-827.45,0.0002073,2]
[349799867,1737435050918,-500.0,0.0002073,2]
[349799868,1737435050927,-500.0,0.0002073,2]
[349799869,1737435050937,-500.0,0.0002073,2]
[349799870,1737435050947,-500.0,0.0002073,2]
[349799871,1737435050957,-684.61,0.0002073,2]
[349799872,1737435050966,-15808.69098053,0.00020768,2]
[349799873,1737435050977,-500.0,0.0002082,2]
[349799874,1737435050987,-500.0,0.0002082,2]
[349799875,1737435050997,-500.0,0.0002082,2]
[349799876,1737435051007,-500.0,0.0002082,2]
[349799877,1737435051017,-1349.98,0.0002082,2]
[349799878,1737435051028,-500.0,0.0002082,2]
[349799879,1737435051043,-500.0,0.0002082,2]
[349799880,1737435051053,-583.46,0.0002082,2]
[349799881,1737435051063,-500.0,0.0002082,2]
[349799882,1737435051073,-500.0,0.0002082,2]
[349799883,1737435051083,-500.0,0.0002082,2]
[349799884,1737435051092,-500.0,0.0002082,2]
[349799885,1737435051102,-500.0,0.0002082,2]
[349799886,1737435051111,-500.0,0.0002082,2]
[349799887,1737435051120,-500.0,0.0002082,2]
[349799888,1737435051130,-500.0,0.0002082,2]
[349799889,1737435051139,-530.29743495,0.0002082,2]
[349799890,1737435051149,-500.0,0.0002082,2]
[349799891,1737435051159,-1664.66,0.00020821,2]
[349799892,1737435051169,-500.0,0.00020821,2]
[349799893,1737435051179,-500.0,0.00020821,2]
[349799894,1737435051190,-500.0,0.00020821,2]
[349799895,1737435051199,-500.0,0.00020821,2]
[349799896,1737435051209,-500.0,0.00020821,2]
[349799897,1737435051218,-500.0,0.00020821,2]
[349799898,1737435051228,-500.0,0.00020821,2]
[349799899,1737435051237,-500.0,0.00020821,2]
[349799900,1737435051246,-500.0,0.00020821,2]
[349799901,1737435051256,-500.0,0.00020821,2]
[349799902,1737435051265,-579.27,0.00020821,2]
[349799903,1737435051274,-594.92,0.00020821,2]
[349799904,1737435051285,-500.0,0.00020821,2]
[349799905,1737435051297,-391.89307137,0.00020821,2]
[349799906,1737435051306,-500.0,0.00020821,2]
[349799907,1737435051315,-500.0,0.00020821,2]
[349799908,1737435051324,-500.0,0.00020821,2]
[349799909,1737435051334,-500.0,0.00020821,2]
[349799910,1737435051343,-500.0,0.00020821,2]
[349799911,1737435051352,-500.0,0.00020821,2]
[349799912,1737435051361,-500.0,0.00020821,2]
[349799913,1737435051370,-500.0,0.00020821,2]
[349799914,1737435051380,-500.0,0.00020821,2]
[349799915,1737435051389,-500.0,0.00020821,2]
[349799916,1737435051398,-500.0,0.00020821,2]
[349799917,1737435051407,-500.0,0.00020821,2]
[349799918,1737435051416,-500.0,0.00020821,2]
[349799919,1737435051426,-580.56,0.00020821,2]
[349799920,1737435051434,-500.0,0.00020821,2]
[349799921,1737435051448,-500.0,0.00020821,2]
[349799922,1737435051458,-500.0,0.00020821,2]
[349799923,1737435051466,-500.0,0.00020821,2]
[349799924,1737435051475,-500.0,0.00020821,2]
[349799925,1737435051485,-500.0,0.00020821,2]
[349799926,1737435051494,-444.89029854,0.00020821,2]
[349799927,1737435051503,-500.0,0.00020821,2]
[349799928,1737435051512,-521.49577962,0.00020821,2]
[349799929,1737435051522,-500.0,0.00020821,2]
[349799930,1737435051531,-500.0,0.00020821,2]
[349799931,1737435051543,-500.0,0.00020821,2]
[349799932,1737435051553,-500.0,0.00020821,2]
[349799933,1737435051562,-524.2322221,0.00020821,2]
[349799934,1737435051571,-500.0,0.00020821,2]
[349799935,1737435051580,-500.0,0.00020821,2]
[349799936,1737435051589,-500.0,0.00020821,2]
[349799937,1737435051598,-500.0,0.00020821,2]
[349799938,1737435051607,-500.0,0.00020821,2]
[349799939,1737435051616,-500.0,0.00020821,2]
[349799940,1737435051625,-500.0,0.00020821,2]
[349799941,1737435051634,-500.0,0.00020821,2]
[349799942,1737435051643,-500.0,0.00020821,2]
[349799943,1737435051652,-500.0,0.00020821,2]
[349799944,1737435051661,-500.0,0.00020821,2]
[349799945,1737435051670,-500.0,0.00020821,2]
[349799946,1737435051679,-500.0,0.00020821,2]
[349799947,1737435051688,-557.99,0.00020821,2]
[349799948,1737435051698,-500.0,0.00020821,2]
[349799949,1737435051706,-528.92,0.00020821,2]
[349799950,1737435051716,-500.0,0.00020821,2]
[349799951,1737435051725,-500.0,0.00020821,2]
[349799952,1737435051734,-500.0,0.00020821,2]
[349799953,1737435051743,-528.52,0.00020821,2]
[349799954,1737435051752,-500.0,0.00020821,2]
[349799955,1737435051761,-500.0,0.00020821,2]
[349799956,1737435051770,-500.0,0.00020821,2]
[349799957,1737435051779,-500.0,0.00020821,2]
[349799958,1737435051791,-803.81,0.00020821,2]
[349799959,1737435051852,-1399.56,0.00020821,2]
[349799960,1737435051861,-500.0,0.00020821,2]
[349799961,1737435051870,-1622.81,0.00020821,2]
[349799962,1737435051879,-737.94,0.00020821,2]
[349799963,1737435051888,-1422.2,0.00020821,2]
[349799964,1737435051897,-860.21,0.00020821,2]
[349799965,1737435051906,-500.0,0.00020821,2]
[349799966,1737435051914,-914.42,0.00020821,2]
[349799967,1737435051924,-500.0,0.00020821,2]
[349799968,1737435051933,-804.37,0.00020821,2]
[349799969,1737435051942,-684.42,0.00020821,2]
[349799970,1737435051952,-500.0,0.00020821,2]
[349799971,1737435051962,-500.0,0.00020821,2]
[349799972,1737435051971,-703.68,0.00020821,2]
[349799973,1737435051980,-1924.26,0.00020821,2]
[349799974,1737435051989,-1181.37,0.00020821,2]
[349799975,1737435051998,-300.0,0.00020821,2]
[349799976,1737435052007,-500.0,0.00020821,2]
[349799977,1737435052016,-500.0,0.00020821,2]
[349799978,1737435052024,-635.65,0.00020821,2]
[349799979,1737435052033,-500.0,0.00020821,2]
[349799980,1737435052043,-500.0,0.00020821,2]
[349799981,1737435052052,-1000.67,0.00020821,2]
[349799982,1737435052061,-500.0,0.00020821,2]
[349799983,1737435052070,-500.0,0.00020821,2]
[349799984,1737435052081,-276.22302425,0.00020821,2]
[349799985,1737435052090,-500.0,0.00020821,2]
[349799986,1737435052100,-500.0,0.00020821,2]
[349799987,1737435052109,-500.0,0.00020821,2]
[349799988,1737435052118,-608.62,0.00020821,2]
[349799989,1737435052128,-775.25,0.00020821,2]
[349799990,1737435052138,-500.0,0.00020821,2]
[349799991,1737435052147,-500.0,0.00020821,2]
[349799992,1737435052156,-500.0,0.00020821,2]
[349799993,1737435052165,-2307.22,0.00020821,2]
[349799994,1737435052174,-500.0,0.00020821,2]
[349799995,1737435052184,-609.18045016,0.00020821,2]
[349799996,1737435052193,-1000.0,0.00020892,2]
[349799997,1737435052202,-161.558,0.000209,2]
[349799998,1737435052212,-1149.69335413,0.000209,2]
[349799999,1737435052221,-448.61055451,0.00020904,2]
[349800000,1737435052231,-144852.0,0.00021,2]
[349800001,1737435052240,-259.95542477,0.00021004,2]
[349800002,1737435052249,-500.0,0.00021004,2]
[349800003,1737435052258,-500.0,0.00021004,2]
[349800004,1737435052267,-500.0,0.00021004,2]
[349800005,1737435052276,-500.0,0.00021004,2]
[349800006,1737435052286,-500.0,0.00021004,2]
[349800007,1737435052296,-1198.92,0.00021004,2]
[349800008,1737435052305,-629.18,0.00021004,2]
[349800009,1737435052314,-500.0,0.00021004,2]
[349800010,1737435052322,-654.38,0.00021004,2]
[349800011,1737435052332,-500.0,0.00021004,2]
[349800012,1737435052341,-500.0,0.00021004,2]
[349800013,1737435052350,-1001.36,0.00021004,2]
[349800014,1737435052359,-523.87,0.00021004,2]
[349800015,1737435052368,-774.72,0.00021004,2]
[349800016,1737435052377,-545.78,0.00021004,2]
[349800017,1737435052386,-500.0,0.00021004,2]
[349800018,1737435052395,-500.0,0.00021004,2]
[349800019,1737435052404,-1521.58,0.00021004,2]
[349800020,1737435052413,-500.0,0.00021004,2]
[349800021,1737435052421,-995.55,0.00021004,2]
[349800022,1737435052432,-500.0,0.00021004,2]
[349800023,1737435052444,-500.0,0.00021004,2]
[349800024,1737435052453,-717.51,0.00021004,2]
[349800025,1737435052461,-500.0,0.00021004,2]
[349800026,1737435052470,-510.62,0.00021004,2]
[349800027,1737435052479,-500.0,0.00021004,2]
[349800028,1737435052487,-1144.85,0.00021004,2]
[349800029,1737435052496,-500.0,0.00021004,2]
[349800030,1737435052505,-1257.94,0.00021004,2]
[349800031,1737435052514,-500.0,0.00021004,2]
[349800032,1737435052524,-500.0,0.00021004,2]
[349800033,1737435052532,-776.09,0.00021004,2]